Cogmind - Beta 12 --- EXPLORER MODE // 2023.04.11 @ 17:50:02 Player: Olexender Result: Destroyed by Lightning with EMDS Performance ------------- Evolutions (6) 3000 Regions Visited (17) 3400 Robots Destroyed (484) 2420 Value Destroyed (24300) 24300 Prototype IDs (56) 1120 Alien Tech Used (0) 0 Bonus (5262) 5262 TOTAL SCORE: 39502 Bonus ------- High Alert Combat Kills 883 Follower Combat Kills 1558 Entered Garrisons 400 Used RIF Installer 1000 Entered DSFs 500 Network Hubs Disabled 200 Aligned with FarCom 300 Met Zhirov 300 Met R17 at Cetus 500 Friendly Fire -379 Cogmind --------- Core Integrity 0/1150 Matter 290/300 Energy 58/100 System Corruption 9% Temperature Cool (0) Movement Core (50) Location -4/Hub_04(d) Parts ------- > --- POWER (3) -------- (None) > --- PROPULSION (6) --- (None) > --- UTILITY (9) ------ Improved Power Shielding > --- WEAPON (2) ------- (None) > --- INVENTORY (5) ---- Advanced ECM Suite Improved Core Shielding HERF Cannon Advanced KE Penetrator Power Sword Peak State ------------ > --- POWER ------------ Quantum Reactor Quantum Reactor Light Quantum Reactor > --- PROPULSION ------- Myomer Leg Myomer Leg Advanced Myomer Leg Advanced Myomer Leg Centrium Leg Centrium Leg > --- UTILITY ---------- Advanced Heat Sink Advanced Cooling System Advanced Cooling System Huge Storage Unit Advanced Gravity Neutralizer Terrain Scan Processor Improved Weapon Cycler Centrium Medium Armor Plating Centrium Medium Armor Plating > --- WEAPON ----------- Advanced Variable Charge Gun Advanced KE Penetrator > --- INVENTORY -------- Flexi-carbon Leg Flexi-carbon Leg High-capacity Battery Compact Matter Pod Advanced ECM Suite Advanced ECM Suite Improved Core Shielding Improved Medium Armor Plating Advanced Hacking Suite Advanced Hacking Suite Advanced Component Analysis Suite Improved Field Recycling Unit Advanced Variable Charge Gun HERF Cannon Railgun Railgun Bore Cannon Enhanced Gauss Cannon Long-range Missile Launcher Advanced Remote Datajack Power Sword [Rating: 154] Favorites ----------- Power Particle Reactor Engine Improved Deuterium Engine Power Core Enhanced Nuclear Core Reactor Particle Reactor Propulsion Improved Titanium Leg Leg Improved Titanium Leg Utility Advanced Weight Redist. System Device Advanced Weight Redist. System Storage High-capacity Storage Unit Processor Advanced Corruption Screen Hackware Hacking Suite Protection Improved Medium Armor Plating Weapon Tri-rail Accelerator Energy Gun Advanced Variable Charge Gun Energy Cannon Cooled Particle Cannon Ballistic Gun Railgun Ballistic Cannon Tri-rail Accelerator Launcher Grenade Launcher Special Weapon Advanced Remote Datajack Slashing Weapon Scythe Build | -11 -10 -10 -10 -9 -8 -7 -7 -7 -7 -6 -6 -5 -4 -4 -4 -4 -4 ------- Run | Jun Mat Min Exi Min Mat Fac Gar Fac Gar Fac DSF Fac Fac Ext Cet Arc Hub Slots Evolved 13 | . 1 . . . 4 2 . . . 2 . 2 2 . . . . Power 2 | . . . . . 1 . . . . . . 1 . . . . . Propulsion 4 | . . . . . 1 1 . . . 1 . . 1 . . . . Utility 7 | . 1 . . . 2 1 . . . 1 . 1 1 . . . . Weapon . | . . . . . . . . . . . . . . . . . . Parts Attached 431 | 7 8 2 3 . 27 101 17 18 6 2 13 50 103 20 26 . 28 Power 62 | 1 1 . . . 3 14 2 3 . . . 14 10 4 6 . 4 Engine 14 | 1 . . . . . 11 1 . . . . 1 . . . . . Core 17 | . 1 . . . 3 3 . 2 . . . 5 1 . . . 2 Reactor 31 | . . . . . . . 1 1 . . . 8 9 4 6 . 2 Propulsion 101 | 2 2 1 . . 8 24 2 4 2 1 6 11 28 3 3 . 4 Treads . | . . . . . . . . . . . . . . . . . . Leg 101 | 2 2 1 . . 8 24 2 4 2 1 6 11 28 3 3 . 4 Wheel . | . . . . . . . . . . . . . . . . . . Hover . | . . . . . . . . . . . . . . . . . . Flight . | . . . . . . . . . . . . . . . . . . Utility 179 | 2 2 1 3 . 8 34 8 9 4 1 4 21 47 12 10 . 13 Device 124 | . 1 1 2 . 5 22 7 7 4 . . 17 34 11 7 . 6 Storage 5 | 1 . . . . 1 1 . . . . . . 1 . . . 1 Processor 6 | . 1 . . . . 1 . . . . . . 2 1 1 . . Hackware 9 | . . . . . . 1 . . . 1 3 1 3 . . . . Protection 35 | 1 . . 1 . 2 9 1 2 . . 1 3 7 . 2 . 6 Artifact . | . . . . . . . . . . . . . . . . . . Weapon 89 | 2 3 . . . 8 29 5 2 . . 3 4 18 1 7 . 7 Energy Gun 13 | . 1 . . . 1 6 1 . . . . . 1 . 2 . 1 Energy Cannon 10 | . . . . . . 8 . . . . . . 1 1 . . . Ballistic Gun 17 | 2 1 . . . 2 . 1 . . . . . 4 . 5 . 2 Ballistic Cannon 32 | . . . . . 3 11 3 1 . . 3 2 6 . . . 3 Launcher 3 | . 1 . . . . 1 . . . . . . . . . . 1 Special Weapon 2 | . . . . . . . . . . . . 1 1 . . . . Impact Weapon . | . . . . . . . . . . . . . . . . . . Slashing Weapon 12 | . . . . . 2 3 . 1 . . . 1 5 . . . . Piercing Weapon . | . . . . . . . . . . . . . . . . . . Special Melee Weapon . | . . . . . . . . . . . . . . . . . . Unidentified Prototypes 31 | . . . 1 . 3 8 . . . . 1 3 10 1 3 . 1 Parts Lost 84 | . . . . 5 1 14 5 2 4 . 1 3 13 8 2 3 23 Power 19 | . . . . 1 . 4 . . . . . 1 2 2 2 . 7 Propulsion 16 | . . . . 1 . 3 2 . 1 . . . 1 1 . 1 6 Utility 37 | . . . . 1 . 5 2 2 3 . 1 2 9 4 . 2 6 Weapon 12 | . . . . 2 1 2 1 . . . . . 1 1 . . 4 Highest Loss Streak 14 | . . . . 5 1 3 3 1 2 . 1 1 5 5 1 3 14 To Critical Strikes 5 | . . . . . . . . . . . . . . . 2 . 3 Average Slot Usage (%) 95 | . 98 100 99 86 98 98 96 89 91 93 92 93 94 99 99 91 91 Engine 2 | . 5 . . . . 8 2 . . . . 2 . . . . . Core 5 | . 6 12 12 9 15 4 7 6 7 6 6 5 . . . . . Reactor 6 | . . . . . . . 4 6 7 6 6 8 13 14 14 15 12 Leg 27 | . 24 25 25 22 24 27 26 27 27 31 31 26 29 29 30 27 25 Device 22 | . 5 21 18 9 15 18 26 23 27 25 18 20 26 31 23 19 20 Storage 6 | . 12 12 12 12 8 7 7 7 7 6 6 5 5 5 5 5 5 Processor 2 | . 11 3 . . . 2 . . . . . . 2 8 12 10 6 Hackware 5 | . . . . . . 3 7 7 7 12 16 11 6 . . . . Protection 5 | . 6 . 5 12 15 8 1 2 . . . 3 3 . 4 5 9 Energy Gun 1 | . 4 12 12 10 4 . 1 . . . . . . . 4 5 4 Ballistic Gun 2 | . 19 12 12 9 3 . 2 . . . . . 1 9 5 5 2 Ballistic Cannon 5 | . . . . . 7 9 8 5 7 6 5 4 3 . . . 2 Naked Turns 14 | . . . . . . . . . . . . . . . . . 14 Heaviest Build 176 | 19 21 23 23 21 51 93 101 110 103 103 103 117 175 164 170 170 176 Greatest Support 187 | 20 20 20 20 20 54 89 87 85 87 105 107 107 187 187 170 170 186 Greatest Overweight (x) 2 | . 1 1 1 1 2 1 1 1 1 . . 1 1 1 . 1 1 Average Overweight (x) . | . . . . . . . . . 1 . . . . . . . . Largest Inventory Capacity 25 | 10 10 10 10 10 15 20 20 20 20 20 20 20 25 25 25 25 25 Average Capacity 19 | 8 10 10 10 10 12 19 20 20 20 20 20 20 22 25 25 25 24 Most Carried 25 | 9 10 10 10 10 15 20 20 20 20 18 20 20 25 25 25 24 25 Average Carried 18 | 3 6 9 9 10 11 17 18 18 18 17 19 19 20 23 22 24 22 Final Capacity 25 | 10 10 10 10 10 15 20 20 20 20 20 20 20 25 25 25 25 25 Final Carried 25 | 3 10 10 10 10 15 20 17 20 19 18 20 19 25 20 24 24 21 Class Distribution -------------------- 90% | Hacker-Mutant 3% | Scavenger-Skirmisher 3% | Scavenger-Mutant Dominant Class ---------------- Hacker-Mutant | -10/Materials Hacker-Mutant | -10/Mines Hacker-Mutant | -10/Exiles Hacker-Mutant | -9/Mines Hacker-Mutant | -8/Materials Hacker-Mutant | -7/Factory Hacker-Mutant | -7/Garrison Hacker-Mutant | -7/Factory Hacker-Mutant | -7/Garrison Hacker-Mutant | -6/Factory Wizard-Mutant | -6/DSF Hacker-Mutant | -5/Factory Hacker-Mutant | -4/Factory Scavenger-Skirmisher | -4/Extension Scavenger-Skirmisher | -4/Cetus Scavenger-Mutant | -4/Archives Scavenger-Mutant | -4/Hub_04(d) Resources | -11 -10 -10 -10 -9 -8 -7 -7 -7 -7 -6 -6 -5 -4 -4 -4 -4 -4 ----------- Run | Jun Mat Min Exi Min Mat Fac Gar Fac Gar Fac DSF Fac Fac Ext Cet Arc Hub Matter Collected 15167 | 252 289 200 . . 925 2734 1377 991 1239 . 424 1248 3213 823 596 . 856 Remotely . | . . . . . . . . . . . . . . . . . . Salvage Created 19254 | 77 488 16 . . 1366 3666 954 1183 409 . 448 1433 4313 1230 1236 96 2339 Parts 897 | 1 29 3 . . 83 163 42 63 18 . 16 64 188 52 62 3 110 Haulers Intercepted 13 | . 1 . . . 2 5 . 1 . . . 1 3 . . . . Recyclers Shooed 16 | 1 . . . . . 4 . 2 . . . 2 5 2 . . . Parts Field Recycled 33 | . . . . . . 33 . . . . . . . . . . . Retrieved Matter 613 | . . . . . . 613 . . . . . . . . . . . Parts Self-Destructed . | . . . . . . . . . . . . . . . . . . Prevented . | . . . . . . . . . . . . . . . . . . Kills | -11 -10 -10 -10 -9 -8 -7 -7 -7 -7 -6 -6 -5 -4 -4 -4 -4 -4 ------- Run | Jun Mat Min Exi Min Mat Fac Gar Fac Gar Fac DSF Fac Fac Ext Cet Arc Hub Combat Hostiles Destroyed 384 | . 9 1 . . 28 73 29 28 25 . 10 32 86 14 17 1 31 Melee 12 | . . . . . . . . 12 . . . . . . . . . Guns 97 | . 5 1 . . 16 2 5 . . . . . 16 11 16 1 24 Cannons 261 | . . . . . 12 71 20 16 25 . 10 32 67 3 . . 5 AOE 9 | . 4 . . . . . 1 . . . . . 3 . . . 1 Classes Destroyed 19 | 1 5 . . . 5 6 . . . . . 1 1 . . . . Worker 25 | . 1 . . . . 5 . 2 . . . 4 9 . . . 4 Builder 23 | . . . . . 2 3 . 4 . . . 3 8 1 . . 2 Tunneler 2 | . . . . . 1 . . . . . . . 1 . . . . Hauler 13 | . 1 . . . 2 5 . 1 . . . 1 3 . . . . Recycler 21 | 1 1 . . . 3 6 . 2 . . . 1 5 1 . . 1 Mechanic 1 | . . . . . . . . . . . . 1 . . . . . Operator 7 | . . . . . 2 1 . 1 . . . 2 . 1 . . . Watcher 24 | . 2 . . . 1 7 . 1 . . . 4 4 1 2 . 2 Swarmer 53 | . 2 1 . . 8 8 6 3 7 . . 3 15 . . . . Grunt 142 | . 7 . . . 9 32 12 11 11 . 5 1 21 8 4 1 20 Brawler 6 | . . . . . . 2 1 1 . . . 1 1 . . . . Duelist 9 | . . . . . . 2 2 1 1 . . 1 2 . . . . Protector 2 | . . . . . . 1 . . . . . . . . . . 1 Sentry 57 | . . . . . 10 12 3 4 4 . . 7 9 3 . . 5 Specialist 11 | . . . . . . 2 . . 2 . 2 5 . . . . . Hunter 32 | . . . . . 1 2 2 4 . . 2 3 11 1 6 . . Programmer 59 | . . . . . . 11 3 4 . . . 10 25 . 1 . 5 Heavy 4 | . . . . . . 1 . . . . 1 1 1 . . . . Behemoth 3 | . . . . . . . . . . . . . 1 2 . . . Cetus Guard 6 | . . . . . . . . . . . . . . . 6 . . Best Kill Streak 10 | 1 3 1 . . 8 6 4 7 5 . 3 10 7 8 8 1 5 Combat Bots Only 7 | . 3 1 . . 4 5 5 4 5 . 3 5 6 5 7 1 4 Max Kills in Single Turn 4 | 1 2 1 . . 1 2 1 1 1 . 1 1 4 2 2 1 2 Gunslinging 1 | . . . . . . . . . . . . . 1 . 1 . 1 Exploded 2 | . 2 . . . . . 1 . . . . . 1 . . . 1 Melee 1 | . . . . . . . . 1 . . . . . . . . . Uniques/NPCs Destroyed . | . . . . . . . . . . . . . . . . . . Combat | -11 -10 -10 -10 -9 -8 -7 -7 -7 -7 -6 -6 -5 -4 -4 -4 -4 -4 -------- Run | Jun Mat Min Exi Min Mat Fac Gar Fac Gar Fac DSF Fac Fac Ext Cet Arc Hub Damage Taken 20111 | . 231 13 . 475 808 3783 946 812 686 . 372 1493 3388 1116 981 1128 3879 Core 2253 | . 59 5 . 112 107 382 76 119 40 . 70 114 215 85 98 87 684 Absorbed by Shields 4464 | . . . . . . 246 380 139 428 . 8 508 1768 298 589 68 32 Redirected to Shielding 152 | . 2 . . 22 31 75 . . . . . 17 2 . . . 3 Regen/Repaired (Parts) 1562 | . . . . . 35 367 . 448 . . . 151 561 . . . . Core Remaining (%) 66 | 100 . . . 29 80 . . . 11 . 91 88 . . . . . Volleys Fired 1335 | 3 38 2 . . 94 241 126 60 99 . 24 114 264 72 66 7 125 Largest 2 | 2 2 2 . . 2 2 2 1 1 . 1 1 2 2 2 2 2 Hottest 145 | 40 70 70 . . 96 128 103 83 83 . 83 60 70 140 140 115 145 Shots Fired 2075 | 6 73 4 . . 185 454 226 61 99 . 24 114 318 144 121 12 234 Gun 862 | 6 69 4 . . 119 33 80 . . . . . 109 133 111 12 186 Cannon 1204 | . . . . . 66 421 146 61 99 . 24 114 208 11 10 . 44 Launcher 8 | . 4 . . . . . . . . . . . . . . . 4 Special 1 | . . . . . . . . . . . . . 1 . . . . Kinetic 1638 | 6 59 2 . . 127 311 178 61 99 . 24 114 317 133 79 7 121 Thermal 347 | . 10 2 . . 58 110 . . . . . . . 11 42 5 109 Explosive 8 | . 4 . . . . . . . . . . . . . . . 4 Electromagnetic 81 | . . . . . . 33 48 . . . . . . . . . . Robot Hit Streak 53 | 6 15 5 . . 27 32 53 14 16 . 14 29 38 21 44 38 33 Robot Miss Streak 6 | . 4 . . . 4 2 2 2 2 . 1 3 6 3 1 1 3 Penetration Max 2 | . . . . . . . 1 . . . . . 1 2 1 1 1 Secondary Targets 18 | . 2 . . . 3 . . . . . . . 3 1 4 1 4 Max Gunslinging Chain 1 | . 1 . . . 1 . . . . . . . 1 1 1 1 1 Shots Hit Robots 1730 | 6 54 3 . . 146 360 140 88 61 . 23 111 298 123 112 11 194 Core Hits 855 | 2 25 1 . . 56 150 47 33 19 . 17 88 219 50 53 5 90 Critical Kills 20 | . . . . . 1 . . . . . . . 2 . 8 1 8 Critical Parts Destroyed 16 | . . . . . . . . . . . . . 1 . 7 1 7 Critical Strikes 115 | . 2 . . . 5 21 9 11 6 . 4 6 13 . 16 2 20 Burn 4 | . 2 . . . 2 . . . . . . . . . . . . Meltdown 1 | . . . . . . . . . . . . . . . 1 . . Destroy 37 | . . . . . 1 . . . . . . . 3 . 15 2 16 Blast 67 | . . . . . 2 20 9 6 6 . 4 6 10 . . . 4 Corrupt 1 | . . . . . . 1 . . . . . . . . . . . Sever 5 | . . . . . . . . 5 . . . . . . . . . Melee Attacks 88 | . . . . . 1 33 . 39 . . . 12 3 . . . . Impact . | . . . . . . . . . . . . . . . . . . Slashing 88 | . . . . . 1 33 . 39 . . . 12 3 . . . . Piercing . | . . . . . . . . . . . . . . . . . . Sneak Attacks 3 | . . . . . . 1 . 2 . . . . . . . . . Combat Hostiles . | . . . . . . . . . . . . . . . . . . Follow-up Attacks . | . . . . . . . . . . . . . . . . . . Damage Inflicted 68253 | 62 829 51 . . 2961 10336 3921 4900 4605 . 1669 7691 17276 3622 3201 388 6741 Guns 17580 | 62 569 38 . . 1602 502 1101 . . . . . 2456 3261 2845 388 4756 Cannons 46004 | . . . . . 1341 9550 2679 3689 4605 . 1669 7421 13094 356 356 . 1244 Explosions 2565 | . 241 . . . . . 141 . . . . . 1442 . . . 741 Melee 1260 | . . . . . . 49 . 1211 . . . . . . . . . Ramming 844 | . 19 13 . . 18 235 . . . . . 270 284 5 . . . Kinetic 54522 | 62 520 14 . . 2097 6927 3132 3689 4605 . 1669 7421 15550 3261 1929 234 3412 Thermal 9495 | . 49 24 . . 846 2623 141 . . . . . 1442 356 1272 154 2588 Explosive 982 | . 241 . . . . . . . . . . . . . . . 741 Electromagnetic 1150 | . . . . . . 502 648 . . . . . . . . . . Impact . | . . . . . . . . . . . . . . . . . . Slashing 1260 | . . . . . . 49 . 1211 . . . . . . . . . Piercing . | . . . . . . . . . . . . . . . . . . Highest Corruption 9 | . . . . . . 2 5 2 . . . 4 3 . . . 9 Average Corruption 2 | . . . . . . 1 2 1 . . . 2 2 . . . 2 Corruption Purged 24 | . . . . . . 3 5 3 . . . 5 8 . . . . Corruption Blocked 4 | . . . . . . . . . . . . . 4 . . . . Effects 52 | . . . . . . 6 15 2 . . . 21 6 . . . 2 Message Errors 9 | . . . . . . . 3 . . . . 4 2 . . . . Matter Fused 15 | . . . . . . 2 6 1 . . . 4 1 . . . 1 Heat Flow Errors 4 | . . . . . . . 2 . . . . 1 1 . . . . Energy Discharges 4 | . . . . . . . . . . . . 4 . . . . . Parts Rejected 3 | . . . . . . 1 . . . . . 2 . . . . . Parts Fused 1 | . . . . . . 1 . . . . . . . . . . . Data Loss (minor) 9 | . . . . . . 1 2 . . . . 4 1 . . . 1 Data Loss (major) 2 | . . . . . . 1 1 . . . . . . . . . . Misfires 3 | . . . . . . . 1 1 . . . 1 . . . . . Weapon Failures 2 | . . . . . . . . . . . . 1 1 . . . . Overload Shots . | . . . . . . . . . . . . . . . . . . Overflow Damage 2776 | . 15 . . . 29 212 188 673 598 . 133 240 629 . 10 . 49 Projectiles 2442 | . . . . . 29 193 188 673 598 . 133 230 339 . 10 . 49 Explosions 287 | . 15 . . . . . . . . . . 9 263 . . . . Melee 47 | . . . . . . 19 . . . . . 1 27 . . . . Knockbacks 240 | . . . . . 5 46 12 14 17 . 3 52 74 . . . 17 Impact 4 | . . . . . . . . . . . . 2 2 . . . . Kinetic 215 | . . . . . 5 40 11 13 16 . 3 45 69 . . . 13 Secondary 21 | . . . . . . 6 1 1 1 . . 5 3 . . . 4 Self-Inflicted Damage 289 | . 18 . . . . . . . . . . 92 136 . . . 43 Shots 8 | . 1 . . . . . . . . . . 2 3 . . . 2 Rammed . | . . . . . . . . . . . . . . . . . . Targets Rammed 67 | . 2 3 . . 1 22 . . . . . 21 17 1 . . . Kicked 67 | . 2 3 . . 1 22 . . . . . 21 17 1 . . . Crushed . | . . . . . . . . . . . . . . . . . . Highest Temperature 476 | . 60 30 . 2 476 374 204 30 21 . 28 353 458 49 245 90 320 Average Temperature 83 | . 19 17 . 2 80 75 29 11 6 . 17 124 153 17 103 50 93 Received Heat Transfer 5500 | . 174 . . 40 405 1549 372 398 385 . 153 110 463 437 108 62 844 Effects 8 | . . . . . . 1 . . . . . 2 4 . . . 1 Shutdowns 4 | . . . . . . 1 . . . . . 2 . . . . 1 Energy Bleed 1 | . . . . . . . . . . . . . 1 . . . . Interference 1 | . . . . . . . . . . . . . 1 . . . . Damage (major) 2 | . . . . . . . . . . . . . 2 . . . . Siege Activations . | . . . . . . . . . . . . . . . . . . Robots Corrupted 3 | . . . . . . . 3 . . . . . . . . . . Combat Hostiles 3 | . . . . . . . 3 . . . . . . . . . . Parts Fried 7 | . . . . . . 1 4 1 . . . . . . . . 1 Impact Corruptions 9 | . . . . . . . . 1 . . . 3 4 . . . 1 Robots Melted 2 | . . . . . . . . . . . . . . . 1 . 1 Combat Hostiles 2 | . . . . . . . . . . . . . . . 1 . 1 Parts Melted 11 | . 2 . . . 3 1 . . . . . . . . 3 . 2 Heat Transferred 12560 | . 296 74 . . 1998 3771 150 . . . . . 1000 370 1517 166 3218 Parts Sabotaged . | . . . . . . . . . . . . . . . . . . Parts Stolen . | . . . . . . . . . . . . . . . . . . Parts Stripped . | . . . . . . . . . . . . . . . . . . Power Chain Reactions 2 | . . . . . . . 2 . . . . . . . . . . Missiles Intercepted . | . . . . . . . . . . . . . . . . . . Alert | -11 -10 -10 -10 -9 -8 -7 -7 -7 -7 -6 -6 -5 -4 -4 -4 -4 -4 ------- Run | Jun Mat Min Exi Min Mat Fac Gar Fac Gar Fac DSF Fac Fac Ext Cet Arc Hub Peak Influence 1661 | 5 268 20 . . 303 444 1540 697 1661 647 577 245 401 207 271 115 359 Initial 647 | . 2 20 . . . . 21 600 . 647 349 225 52 113 51 75 20 Average 208 | 1 88 18 . . 84 77 776 252 891 647 475 67 101 107 158 84 118 Maximum Alert Level 5 | . 1 . . . 1 2 4 2 5 2 2 1 2 1 1 . 1 Low Security (%) 72 | 100 82 100 . 100 90 90 12 47 11 . . 87 80 78 85 100 84 Level 1 13 | . 17 . . . 9 8 6 27 5 . 23 12 19 21 14 . 15 Level 2 6 | . . . . . . 1 30 25 23 100 76 . . . . . . Level 3 3 | . . . . . . . 27 . 21 . . . . . . . . Level 4 3 | . . . . . . . 23 . 33 . . . . . . . . Level 5 . | . . . . . . . . . 5 . . . . . . . . High Security . | . . . . . . . . . . . . . . . . . . Max Security . | . . . . . . . . . . . . . . . . . . Sterilizations 1 | . . . . . . . . . . . 1 . . . . . . Squads Dispatched 117 | . . . . . 3 43 . 11 . . 2 14 30 3 . . 11 Investigation 36 | . . . . . 3 13 . 5 . . . 2 6 3 . . 4 Extermination 34 | . . . . . . 10 . 4 . . . 5 13 . . . 2 Reinforcement 31 | . . . . . . 12 . 2 . . 2 6 5 . . . 4 Assault 1 | . . . . . . 1 . . . . . . . . . . . Garrison 15 | . . . . . . 7 . . . . . 1 6 . . . 1 Intercept . | . . . . . . . . . . . . . . . . . . Searches Triggered . | . . . . . . . . . . . . . . . . . . Construction Impeded 4 | . . . . . . 1 . 1 . . . 1 1 . . . . Haulers Reinforced 5 | . . . . . . 2 . . . . . 1 1 . . . 1 Active Scanning Responses . | . . . . . . . . . . . . . . . . . . Cargo Convoy Interrupts 2 | . . . . . . 1 . . . . . 1 . . . . . Stealth | -11 -10 -10 -10 -9 -8 -7 -7 -7 -7 -6 -6 -5 -4 -4 -4 -4 -4 --------- Run | Jun Mat Min Exi Min Mat Fac Gar Fac Gar Fac DSF Fac Fac Ext Cet Arc Hub Distress Signals 20 | . 2 . . . 3 2 . 1 . . . 1 3 2 3 1 2 Communications Jammed . | . . . . . . . . . . . . . . . . . . Distress Signals . | . . . . . . . . . . . . . . . . . . Times Spotted 569 | . 13 2 . 12 43 118 33 29 39 . 9 51 105 23 23 20 49 Peak Tracking Total 19 | . 4 1 . 12 5 8 6 3 6 . 3 8 8 5 5 19 10 Tactical Retreats 28 | . 1 . . . 2 4 3 2 4 . . 3 6 1 . . 2 Traps | -11 -10 -10 -10 -9 -8 -7 -7 -7 -7 -6 -6 -5 -4 -4 -4 -4 -4 ------- Run | Jun Mat Min Exi Min Mat Fac Gar Fac Gar Fac DSF Fac Fac Ext Cet Arc Hub Traps Triggered 31 | . 2 . . . . 7 5 6 4 . 1 3 2 . . . 1 Indirectly . | . . . . . . . . . . . . . . . . . . Trap Hack Attempts . | . . . . . . . . . . . . . . . . . . Triggered . | . . . . . . . . . . . . . . . . . . Disarmed 5 | . . . . . 1 . . . . . . . 4 . . . . Reprogrammed 31 | . 4 . . . . . . 6 . . . 12 . 6 . . 3 Reused 15 | . . . . . . . . 6 . . . 6 . 3 . . . Traps Extracted . | . . . . . . . . . . . . . . . . . . Installed . | . . . . . . . . . . . . . . . . . . Triggered 15 | . . . . . . . . 6 . . . 6 . 3 . . . Exploded 1 | . . . 1 . . . . . . . . . . . . . . Machines | -11 -10 -10 -10 -9 -8 -7 -7 -7 -7 -6 -6 -5 -4 -4 -4 -4 -4 ---------- Run | Jun Mat Min Exi Min Mat Fac Gar Fac Gar Fac DSF Fac Fac Ext Cet Arc Hub Machines Disabled 70 | . . . . . 2 5 8 1 7 . 1 15 25 3 . . 3 Max in Single Turn 5 | . . . . . 1 1 1 1 1 . . 4 5 1 . . 1 Garrison Access 4 | . . . . . . 1 . 1 . . . 1 1 . . . . Garrison Relay 10 | . . . . . . . 5 . 5 . . . . . . . . Network Hub 1 | . . . . . . . . . . . . . . . . . 1 Machines Repaired . | . . . . . . . . . . . . . . . . . . Machines Sabotaged . | . . . . . . . . . . . . . . . . . . Overloaded Fab Kills . | . . . . . . . . . . . . . . . . . . Hacking | -11 -10 -10 -10 -9 -8 -7 -7 -7 -7 -6 -6 -5 -4 -4 -4 -4 -4 --------- Run | Jun Mat Min Exi Min Mat Fac Gar Fac Gar Fac DSF Fac Fac Ext Cet Arc Hub Machines Accessed 155 | . 9 2 1 . 15 33 1 14 4 1 . 27 27 13 3 . 5 Terminals 91 | . 7 . . . 10 17 1 5 4 1 . 15 11 12 3 . 5 Fabricators 12 | . . . . . . 5 . 1 . . . 2 4 . . . . Repair Stations 15 | . . . . . 1 4 . 2 . . . 4 4 . . . . Recycling Units 18 | . 2 . . . 2 3 . 2 . . . 3 5 1 . . . Scanalyzers 11 | . . . . . 2 3 . 2 . . . 2 2 . . . . Garrison Access 5 | . . . . . . 1 . 2 . . . 1 1 . . . . Total Hacks 484 | . 24 2 1 . 57 86 3 41 10 1 . 84 110 37 9 . 19 Successful 379 | . 21 2 1 . 45 70 1 35 4 1 . 63 88 24 9 . 15 Failed 105 | . 3 . . . 12 16 2 6 6 . . 21 22 13 . . 4 Catastrophic 5 | . . . . . . 1 . . . . . 2 2 . . . . Database Lockouts . | . . . . . . . . . . . . . . . . . . Manual 126 | . 14 . 1 . 16 25 . 7 1 . . 23 17 16 1 . 5 Terminals 269 | . 21 . . . 38 41 3 16 10 1 . 48 28 35 9 . 19 Fabricators 48 | . . . . . . 15 . 4 . . . 10 19 . . . . Repair Stations 52 | . . . . . 2 12 . 10 . . . 10 18 . . . . Recycling Units 48 | . 3 . . . 4 7 . 5 . . . 7 20 2 . . . Scanalyzers 59 | . . . . . 13 10 . 4 . . . 8 24 . . . . Garrison Access 5 | . . . . . . 1 . 2 . . . 1 1 . . . . Terminal Hacks 129 | . 11 2 1 . 18 20 1 7 4 1 . 21 10 14 9 . 10 Record 26 | . . . . . 3 . . . . . . 6 2 4 8 . 3 Part Schematic 5 | . . . . . . . . . . . . 3 1 1 . . . Robot Schematic 1 | . . . . . . 1 . . . . . . . . . . . Robot Analysis 4 | . 1 . . . 2 . . . . . . . . . . . 1 Prototype ID Bank 1 | . . . . . 1 . . . . . . . . . . . . Open Door 7 | . . 2 . . . . . . . . . . . 4 1 . . Open DSF 13 | . . . . . . 5 . 1 . 1 . 3 3 . . . . Level Access Points 4 | . . . . . 1 1 . . . . . 1 . 1 . . . Branch Access Points 4 | . . . . . 1 1 . 1 . . . 1 . . . . . Emergency Access Points 9 | . 1 . . . 1 1 1 1 1 . . 2 . . . . 1 Unreport Threat 18 | . . . . . 2 4 . 2 . . . 2 3 2 . . 3 Locate Traps 6 | . 3 . . . . 3 . . . . . . . . . . . Disarm Traps 2 | . . . . . 1 . . . . . . . 1 . . . . Reprogram Traps 6 | . 1 . . . . . . 1 . . . 2 . 1 . . 1 Registered Components 1 | . . . . . 1 . . . . . . . . . . . . Zone Layout 18 | . 5 . . . 5 4 . 1 . . . 1 . 1 . . 1 Garrison Registry 1 | . . . . . . . . . 1 . . . . . . . . Patrol Navigation 1 | . . . . . . . . . 1 . . . . . . . . Security Stations 1 | . . . . . . . . . 1 . . . . . . . . EX-Prototype ID Bank 1 | . . . 1 . . . . . . . . . . . . . . Fabricator Hacks 38 | . . . . . . 12 . 3 . . . 9 14 . . . . Network Status 11 | . . . . . . 4 . 1 . . . 3 3 . . . . Load Schematic 12 | . . . . . . 3 . 1 . . . 3 5 . . . . Build 15 | . . . . . . 5 . 1 . . . 3 6 . . . . Repair Station Hacks 46 | . . . . . 2 10 . 10 . . . 8 16 . . . . Scan Component 25 | . . . . . 1 5 . 5 . . . 5 9 . . . . Repair 21 | . . . . . 1 5 . 5 . . . 3 7 . . . . Recycling Unit Hacks 42 | . 3 . . . 3 7 . 5 . . . 6 16 2 . . . Process 2 | . . . . . . 1 . . . . . 1 . . . . . Report Inventory 24 | . 2 . . . 2 4 . 3 . . . 3 9 1 . . . Retrieve Matter 3 | . . . . . . 1 . . . . . 1 1 . . . . Retrieve Components 13 | . 1 . . . 1 1 . 2 . . . 1 6 1 . . . Scanalyzer 55 | . . . . . 12 9 . 4 . . . 6 24 . . . . Insert Component 26 | . . . . . 6 4 . 2 . . . 3 11 . . . . Analyze 29 | . . . . . 6 5 . 2 . . . 3 13 . . . . Garrison Access Hacks 5 | . . . . . . 1 . 2 . . . 1 1 . . . . Unlock Access 2 | . . . . . . 1 . 1 . . . . . . . . . Seal Access 3 | . . . . . . . . 1 . . . 1 1 . . . . Unauthorized Hacks 64 | . 7 . . . 10 11 . 4 . . . 12 7 8 . . 5 Terminals 63 | . 7 . . . 10 11 . 4 . . . 11 7 8 . . 5 Botnet 63 | . 7 . . . 10 11 . 4 . . . 11 7 8 . . 5 Fabricators 1 | . . . . . . . . . . . . 1 . . . . . Report 1 | . . . . . . . . . . . . 1 . . . . . Repair Stations . | . . . . . . . . . . . . . . . . . . Recycling Units . | . . . . . . . . . . . . . . . . . . Scanalyzers . | . . . . . . . . . . . . . . . . . . Garrison Access . | . . . . . . . . . . . . . . . . . . Data Cores Recovered 5 | . . . . . 2 1 . . . . . 1 . 1 . . . Used 1 | . . . . . . . . . . . . 1 . . . . . Hacking Detections 112 | . 4 . . . 10 26 1 11 4 . . 20 19 11 1 . 5 Full Trace Events 34 | . . . . . 3 11 . 5 1 . . 2 6 3 . . 3 Feedback Events 1 | . . . . . . . . 1 . . . . . . . . . Corruption 1 | . . . . . . . . 1 . . . . . . . . . Feedback Blocked . | . . . . . . . . . . . . . . . . . . Robot Schematics Acquired 1 | . . . . . . 1 . . . . . . . . . . . Robots Built 13 | . . . . . . 5 . 2 . . . 4 2 . . . . Authchips . | . . . . . . . . . . . . . . . . . . Time 508 | . . . . . . 160 . 58 . . . 232 58 . . . . Total Robot Build Rating 43 | . . . . . . 19 . 6 . . . 12 6 . . . . Part Schematics Acquired 30 | . . . . . 6 4 . 2 . . . 5 12 1 . . . Parts Built 14 | . . . . . . 6 . . . . . 2 6 . . . . Authchips . | . . . . . . . . . . . . . . . . . . Time 750 | . . . . . . 252 . . . . . 42 456 . . . . Total Part Build Rating 82 | . . . . . . 24 . . . . . 8 50 . . . . Parts Repaired 20 | . . . . . 1 5 . 5 . . . 3 6 . . . . Time 906 | . . . . . 26 107 . 238 . . . 84 451 . . . . Parts Recycled . | . . . . . . . . . . . . . . . . . . Recycled Matter 750 | . . . . . . 393 . . . . . 357 . . . . . Retrieved Matter 750 | . . . . . . 393 . . . . . 357 . . . . . Retrieved Components 53 | . 10 . . . 3 3 . 9 . . . 2 22 4 . . . Parts Scanalyzed 26 | . . . . . 6 4 . 2 . . . 3 11 . . . . Part Schematics Acquired 25 | . . . . . 6 4 . 2 . . . 2 11 . . . . Parts Damaged 1 | . . . . . 1 . . . . . . . . . . . . Bothacking | -11 -10 -10 -10 -9 -8 -7 -7 -7 -7 -6 -6 -5 -4 -4 -4 -4 -4 ------------ Run | Jun Mat Min Exi Min Mat Fac Gar Fac Gar Fac DSF Fac Fac Ext Cet Arc Hub Used RIF Installer 2 | . . . . . . . 1 . 1 . . . . . . . . Zone Cloak 1 | . . . . . . . . . 1 . . . . . . . . Robots Hacked 1 | . . . . . . . . . . . . . 1 . . . . Non-combat . | . . . . . . . . . . . . . . . . . . Combat 1 | . . . . . . . . . . . . . 1 . . . . Robot Hacks Applied 1 | . . . . . . . . . . . . . 1 . . . . formatsys_high 1 | . . . . . . . . . . . . . 1 . . . . Relay Couplers Released 44 | . . . . . . 2 20 2 20 . . . . . . . . Machine Destruction 44 | . . . . . . 2 20 2 20 . . . . . . . . Attached 1 | . . . . . . . . . . . . . 1 . . . . Fabnet Peak Effective % . | . . . . . . . . . . . . . . . . . . Robots Rewired . | . . . . . . . . . . . . . . . . . . Allies Hacked . | . . . . . . . . . . . . . . . . . . Hacks Repelled . | . . . . . . . . . . . . . . . . . . Allies | -11 -10 -10 -10 -9 -8 -7 -7 -7 -7 -6 -6 -5 -4 -4 -4 -4 -4 -------- Run | Jun Mat Min Exi Min Mat Fac Gar Fac Gar Fac DSF Fac Fac Ext Cet Arc Hub Total Allies 24 | . . . . . . 8 . 2 2 . . 4 3 5 . . . Largest Group 5 | . . . . . . 5 . 2 2 2 2 4 3 2 2 . . Highest-Rated Group 210 | . . . . . . 93 . 42 190 190 190 84 158 210 97 . . Highest-Rated Ally 159 | . . . . . . 34 . 21 95 95 95 21 116 159 51 . . Total Orders . | . . . . . . . . . . . . . . . . . . Ally Attacks 288 | . . . . . 2 117 . 15 16 . 10 27 20 55 26 . . Total Damage 7791 | . . . . . 87 3006 . 260 724 . 433 682 810 1402 387 . . Kills 57 | . . . . . . 29 . . 9 . 1 5 4 7 2 . . Allies Corrupted 4 | . . . . . . 1 . . . . 2 1 . . . . . Allies Melted 1 | . . . . . . . . . . . . . . 1 . . . Turrets Deployed 2 | . . . . . 1 1 . . . . . . . . . . . Intel | -11 -10 -10 -10 -9 -8 -7 -7 -7 -7 -6 -6 -5 -4 -4 -4 -4 -4 ------- Run | Jun Mat Min Exi Min Mat Fac Gar Fac Gar Fac DSF Fac Fac Ext Cet Arc Hub Robot Analysis Total 4 | . 1 . . . 2 . . . . . . . . . . . 1 Derelict Logs Recovered 2 | . . 2 . . . . . . . . . . . . . . . Drone Launches 2 | . . . . . . . . . . . . . . . . . 2 Drone Recoveries . | . . . . . . . . . . . . . . . . . . Exploration | -11 -10 -10 -10 -9 -8 -7 -7 -7 -7 -6 -6 -5 -4 -4 -4 -4 -4 ------------- Run | Jun Mat Min Exi Min Mat Fac Gar Fac Gar Fac DSF Fac Fac Ext Cet Arc Hub Turns Passed 33709 | 65 762 870 417 131 2047 7239 2347 2586 2369 21 332 4780 6679 1034 676 194 1160 Spaces Moved 17778 | 40 507 517 217 70 1116 3623 1060 993 1061 15 199 2813 3861 594 382 119 591 Core 41 | 11 . . . . . . . . . . . . . . . . 30 Treads . | . . . . . . . . . . . . . . . . . . Legs 17737 | 29 507 517 217 70 1116 3623 1060 993 1061 15 199 2813 3861 594 382 119 561 Wheels . | . . . . . . . . . . . . . . . . . . Hover . | . . . . . . . . . . . . . . . . . . Flight . | . . . . . . . . . . . . . . . . . . Fastest Speed 50 | 50 120 120 120 120 120 122 127 125 195 124 122 120 103 120 120 120 50 Average Speed 140 | 100 123 164 188 189 121 143 177 178 195 124 123 130 118 120 120 151 130 Slowest Speed 260 | 120 190 190 190 190 260 200 195 195 196 124 124 190 190 190 120 190 190 Overloaded Moves . | . . . . . . . . . . . . . . . . . . Propulsion Burnouts . | . . . . . . . . . . . . . . . . . . Robots Hopped 2 | . . . . . . 2 . . . . . . . . . . . Cave-ins Triggered . | . . . . . . . . . . . . . . . . . . Exploration Rate (%) 67 | 4 92 97 60 21 95 78 99 27 93 1 92 60 61 77 96 98 57 Regions Visited 17 Branch Regions 7 Pre-discovered Areas 1 | . . 1 . . . . . . . . . . . . . . . Known Exits Taken 14 | 1 1 1 1 1 1 1 . 1 . 1 . 1 1 1 1 1 . Unknown Exits Taken . | . . . . . . . . . . . . . . . . . . Scrap Searched 1 | . . 1 . . . . . . . . . . . . . . . Spaces Dug 30 | . . . . . 1 7 1 1 4 . . 12 3 1 . . . Terrain Destroyed 633 | . 29 . . . 11 37 11 9 25 . 3 128 264 47 7 3 59 Melee 23 | . . . . . 1 7 . . . . . 12 3 . . . . Projectile 295 | . . . . . 10 30 9 9 25 . 3 33 89 47 7 3 30 AOE 315 | . 29 . . . . . 2 . . . . 83 172 . . . 29 Terrain Rammed . | . . . . . . . . . . . . . . . . . . Walls Destroyed . | . . . . . . . . . . . . . . . . . . Machines Disabled . | . . . . . . . . . . . . . . . . . . Actions | -11 -10 -10 -10 -9 -8 -7 -7 -7 -7 -6 -6 -5 -4 -4 -4 -4 -4 --------- Run | Jun Mat Min Exi Min Mat Fac Gar Fac Gar Fac DSF Fac Fac Ext Cet Arc Hub Total 24359 | 59 576 530 227 69 1640 5146 1284 1654 1215 17 255 3794 5638 812 508 125 810 Wait 4059 | . 3 . . . 361 981 48 512 17 . . 715 1270 106 1 . 45 Move 17759 | 39 506 516 216 69 1115 3619 1059 993 1060 14 198 2812 3860 593 381 118 591 Hop 2 | . . . . . . 2 . . . . . . . . . . . Pick Up 301 | 9 14 2 4 . 19 71 9 14 10 1 9 34 63 10 17 . 15 Fast Attach 43 | 2 . 1 . . 11 7 . 4 . . 2 6 4 . 2 . 4 Attach 158 | 5 4 . 3 . 4 37 7 8 4 2 2 16 39 10 2 . 15 Detach 26 | . 1 . 1 . . 10 2 2 . . . . 8 2 . . . Swap 232 | . 4 1 . . 13 57 10 6 2 . 9 28 61 10 22 . 9 Drop 228 | 1 4 5 3 . 21 56 8 6 7 . 11 31 44 8 17 . 6 Fire 1335 | 3 38 2 . . 94 241 126 60 99 . 24 114 264 72 66 7 125 Melee 88 | . . . . . 1 33 . 39 . . . 12 3 . . . . Ram . | . . . . . . . . . . . . . . . . . . Kick 67 | . 2 3 . . 1 22 . . . . . 21 17 1 . . . Crush . | . . . . . . . . . . . . . . . . . . Escape Stasis 60 | . . . . . . 10 15 10 15 . . 5 5 . . . . Rewire 1 | . . . . . . . . . 1 . . . . . . . . Trap . | . . . . . . . . . . . . . . . . . . Miscellaneous . | . . . . . . . . . . . . . . . . . . Route ------- -11/Junkyard -10/Materials (discovered 3 exits: *Mat x2 / *Min) -10/Mines (discovered 3 exits: *Mat x2 / *Exi) -10/Exiles -9/Mines -8/Materials (discovered 3 exits: *Fac x3) -7/Factory (discovered 7 exits: *Fac x4 / *Low x2 / Gar) -7/Garrison (discovered 3 exits: *Fac x3) -7/Factory (discovered 5 exits: *Fac x2 / Low x2 / Gar) -7/Garrison (discovered 3 exits: *Fac x3) -6/Factory -6/DSF -5/Factory (discovered 6 exits: *Fac x4 / *Upp x2) -4/Factory (discovered 4 exits: *Res x2 / *Upp / *Ext) -4/Extension (discovered 3 exits: *Res x2 / *Cet) -4/Cetus (discovered 3 exits: *Res x2 / *Arc) -4/Archives (discovered 3 exits: *Res / *Hub x2) -4/Hub_04(d) (discovered 3 exits: *Res x3) History --------- Turn | Location | Event 8 | -11/Junkyard | Identified exit to Materials 8 | -11/Junkyard | Discovered exit to Materials (range 15) 66 | -11/Junkyard | Entered Materials 66 | -10/Materials | Evolved 1 slot: Utility x1 138 | -10/Materials | Identified exit to Materials 138 | -10/Materials | Discovered exit to Materials (range 17) 304 | -10/Materials | Build established: Hacker-Mutant 501 | -10/Materials | Discovered exit to Materials (range 16) 806 | -10/Materials | Identified exit to Mines 806 | -10/Materials | Discovered exit to Mines (range 7) 828 | -10/Materials | Entered Mines 854 | -10/Mines | Discovered exit to Materials (range 11) 858 | -10/Mines | Learned location of Storage (-9) 980 | -10/Mines | Found the Drone Emporium 985 | -10/Mines | Learned Materials trap positions 988 | -10/Mines | Found Prototype Device 1038 | -10/Mines | Discovered exit to Materials (range 10) 1050 | -10/Mines | Met a Derelict who couldn't figure out how to use a Trap Extractor 1460 | -10/Mines | Learned Materials garrison access intel 1688 | -10/Mines | Deemed a non-threat by the Exiles lab entrance 1688 | -10/Mines | Identified exit to Exiles 1688 | -10/Mines | Discovered exit to Exiles (range 6) 1698 | -10/Mines | Entered Exiles 1744 | -10/Exiles | Met 8R-AWN 1778 | -10/Exiles | Met EX-HEX 1831 | -10/Exiles | Met EX-BIN 1858 | -10/Exiles | Aligned with FarCom system 1860 | -10/Exiles | Given EX-Vault access code 1904 | -10/Exiles | Opened EX-Vault 1912 | -10/Exiles | Identified Bomb Drone Bay 1920 | -10/Exiles | Found Deploy-a-Sentry 1922 | -10/Exiles | Found Deploy-a-Sentry 1928 | -10/Exiles | Found Deploy-a-Sentry 1969 | -10/Exiles | Warned to stay clear of 0b10 Research branches 1987 | -10/Exiles | Exiles lab attacked by MAIN.C 2098 | -10/Exiles | Identified exit to Mines 2098 | -10/Exiles | Discovered exit to Mines (range 10) 2115 | -10/Exiles | Left Exiles lab with Deploy-a-Sentry 2115 | -10/Exiles | Entered Mines 2134 | -9/Mines | Identified exit to Materials 2134 | -9/Mines | Discovered exit to Materials (range 7) 2196 | -9/Mines | Assembled infested the area 2222 | -9/Mines | Core integrity fell below 50% 2246 | -9/Mines | Entered Materials 2246 | -8/Materials | Evolved 4 slots: Power x1, Propulsion x1, Utility x2 2247 | -8/Materials | Loaded intel: 10 trap records 2252 | -8/Materials | Lost 5 parts (1p1n1u2w) 2839 | -8/Materials | Repaired Core Shielding 3034 | -8/Materials | Identified exit to Factory 3034 | -8/Materials | Discovered exit to Factory (range 4) 3465 | -8/Materials | Discovered exit to Factory (range 5) 3722 | -8/Materials | DAS Turret deployed 4293 | -8/Materials | Entered Factory 4293 | -7/Factory | Evolved 2 slots: Propulsion x1, Utility x1 4592 | -7/Factory | Fabricated System Restoration Module? 4613 | -7/Factory | Fabricated D-53 Grenadier (x1) 4843 | -7/Factory | Identified exit to Factory 4843 | -7/Factory | Discovered exit to Factory (range 5) 4867 | -7/Factory | Fabricated S-27 Virus? 4991 | -7/Factory | Cargo convoy interrupted 5014 | -7/Factory | DAS Turret deployed 5056 | -7/Factory | Lost 3 parts (1p1n1w) 5145 | -7/Factory | Allied Derelicts emerged from ambush trap array 5310 | -7/Factory | Garrison activated, responded to threat 5355 | -7/Factory | Found Prototype Device 5434 | -7/Factory | Identified Active Sensor Suite 5940 | -7/Factory | Identified exit to Lower Caves 7202 | -7/Factory | Fabricated Imp. Carbon-fiber Leg? 7312 | -7/Factory | Fabricated Imp. Carbon-fiber Leg? 7530 | -7/Factory | Repaired Imp. Titanium Leg 7554 | -7/Factory | Repaired Imp. Titanium Leg 7886 | -7/Factory | Garrison activated, responded to threat 7992 | -7/Factory | Core integrity fell below 50% 8165 | -7/Factory | Repaired Imp. Shield Generator 9171 | -7/Factory | Repaired Imp. Titanium Leg? 10511 | -7/Factory | Repaired Adv. Weight Redist. System 10767 | -7/Factory | Garrison activated, responded to threat 11532 | -7/Factory | Identified exit to Garrison 11532 | -7/Factory | Entered Garrison 11638 | -7/Garrison | Triggered checkpoint 11668 | -7/Garrison | Installed Relay Interface Framework 11692 | -7/Garrison | Garrison Relay disabled 11867 | -7/Garrison | Garrison Relay disabled 11950 | -7/Garrison | Triggered checkpoint 11950 | -7/Garrison | Triggered checkpoint 12005 | -7/Garrison | Triggered checkpoint 12058 | -7/Garrison | Lost 3 parts (2n1w) 12256 | -7/Garrison | Triggered checkpoint 12311 | -7/Garrison | Garrison Relay disabled 12356 | -7/Garrison | Identified exit to Factory 12356 | -7/Garrison | Discovered exit to Factory (range 10) 12648 | -7/Garrison | Triggered checkpoint 12690 | -7/Garrison | Garrison Relay disabled 12810 | -7/Garrison | Discovered exit to Factory (range 12) 13053 | -7/Garrison | Garrison Relay disabled 13082 | -7/Garrison | Triggered checkpoint 13253 | -7/Garrison | Discovered exit to Factory (range 5) 13403 | -7/Garrison | Triggered checkpoint 13879 | -7/Garrison | Entered Factory 14393 | -7/Factory | Discovered exit to Factory (range 15) 14839 | -7/Factory | Core integrity fell below 20% 15036 | -7/Factory | Fabricated H-55 Commando (x2) 15630 | -7/Factory | Repaired Imp. Carbon-fiber Leg 15699 | -7/Factory | Repaired Particle Reactor 15752 | -7/Factory | Repaired Imp. Titanium Leg 15823 | -7/Factory | Repaired Enh. Nuclear Core 16023 | -7/Factory | Repaired Adv. Weight Redist. System 16160 | -7/Factory | Discovered exit to Factory (range 14) 16465 | -7/Factory | Identified exit to Garrison 16465 | -7/Factory | Entered Garrison 16586 | -7/Garrison | Triggered checkpoint 16627 | -7/Garrison | Garrison Relay disabled 16641 | -7/Garrison | Garrison Relay disabled 16748 | -7/Garrison | Triggered checkpoint 16816 | -7/Garrison | Triggered checkpoint 16862 | -7/Garrison | Triggered checkpoint 16961 | -7/Garrison | Garrison Relay disabled 17139 | -7/Garrison | Discovered exit to Factory (range 8) 17231 | -7/Garrison | Triggered checkpoint 17356 | -7/Garrison | Triggered checkpoint 17468 | -7/Garrison | Triggered checkpoint 17491 | -7/Garrison | Learned Factory security intel 17504 | -7/Garrison | Garrison Relay disabled 17737 | -7/Garrison | Found embedded Infiltrators 17870 | -7/Garrison | Discovered exit to Factory (range 56) 17870 | -7/Garrison | Discovered exit to Factory (range 66) 17870 | -7/Garrison | Discovered exit to Factory (range 12) 18018 | -7/Garrison | Triggered checkpoint 18034 | -7/Garrison | Expanded RIF knowledge: Zone Cloak 18116 | -7/Garrison | Triggered checkpoint 18125 | -7/Garrison | Garrison Relay disabled 18834 | -7/Garrison | Entered Factory 18834 | -6/Factory | Accompanied by 2 allies 18834 | -6/Factory | Evolved 2 slots: Propulsion x1, Utility x1 18855 | -6/Factory | Identified exit to DSF 18855 | -6/Factory | Entered DSF 18855 | -6/DSF | Accompanied by 2 allies 18879 | -6/DSF | Additional patrols routed to DSF 19103 | -6/DSF | Sterilization system engaged 19105 | -6/DSF | Identified exit to Factory 19105 | -6/DSF | Discovered exit to Factory (range 16) 19123 | -6/DSF | Ambient heat levels rising (+10) 19138 | -6/DSF | Ambient heat levels rising (+10) 19153 | -6/DSF | Ambient heat levels rising (+10) 19168 | -6/DSF | Ambient heat levels rising (+10) 19183 | -6/DSF | Ambient heat levels rising (+10) 19187 | -6/DSF | Entered Factory 19187 | -5/Factory | Evolved 2 slots: Power x1, Utility x1 19700 | -5/Factory | Identified exit to Upper Caves 19773 | -5/Factory | Identified exit to Factory 20336 | -5/Factory | Repaired Particle Reactor 21405 | -5/Factory | Repaired Adv. Shield Generator 21525 | -5/Factory | Cargo convoy interrupted 21714 | -5/Factory | Fabricated System Restoration Module? 21893 | -5/Factory | Repaired Particle Reactor 22429 | -5/Factory | Garrison activated, responded to threat 22454 | -5/Factory | Fabricated H-55 Commando? 22654 | -5/Factory | Fabricated H-55 Commando (x2) 23967 | -5/Factory | Entered another Factory area 23967 | -4/Factory | Evolved 2 slots: Propulsion x1, Utility x1 24063 | -4/Factory | Repaired Imp. Cooling System 24586 | -4/Factory | Spotted B-86 Titan 24587 | -4/Factory | Assimilated Titan 7a with formatsys_high 24602 | -4/Factory | Fabricated Lgt. Quantum Reactor? 24693 | -4/Factory | Fabricated H-55 Commando? 25029 | -4/Factory | Repaired Particle Reactor 25381 | -4/Factory | Found Prototype Hackware 25382 | -4/Factory | Identified Exp. System Shield 25708 | -4/Factory | Repaired Adv. Myomer Leg? 25950 | -4/Factory | Repaired Tri-rail Accelerator? 26113 | -4/Factory | Repaired Lgt. Quantum Reactor 26475 | -4/Factory | Identified exit to Research 26475 | -4/Factory | Discovered exit to Research (range 12) 27077 | -4/Factory | Fabricated Centrium Leg (x1) 27283 | -4/Factory | Fabricated Centrium Leg? 27734 | -4/Factory | Repaired System Restoration Module 27837 | -4/Factory | Identified exit to Upper Caves 27837 | -4/Factory | Discovered exit to Upper Caves (range 6) 28226 | -4/Factory | Discovered exit to Research (range 16) 29108 | -4/Factory | Fabricated Adv. Myomer Leg (x1) 29320 | -4/Factory | Garrison activated, responded to threat 29587 | -4/Factory | Spotted B-86 Titan 30097 | -4/Factory | Fabricated Adv. Myomer Leg? 30163 | -4/Factory | Found Prototype Processor 30193 | -4/Factory | Identified Exp. Targeting Computer 30323 | -4/Factory | Garrison activated, responded to threat 30425 | -4/Factory | Lost 5 parts (1p4u) 30500 | -4/Factory | Destroyed B-86 Titan 30633 | -4/Factory | Identified exit to Extension 30633 | -4/Factory | Discovered exit to Extension (range 8) 30646 | -4/Factory | Entered Extension 30764 | -4/Extension | Rescued a captive Derelict 30825 | -4/Extension | Rescued A7 31053 | -4/Extension | Rescued a captive Derelict 31130 | -4/Extension | Spotted B-86 Titan 31139 | -4/Extension | Spotted B-86 Titan 31154 | -4/Extension | Destroyed B-86 Titan 31160 | -4/Extension | Extracted ID and sensor layout for unrecognized location from A7's data core 31174 | -4/Extension | Destroyed B-86 Titan 31481 | -4/Extension | Build established: Scavenger-Skirmisher 31612 | -4/Extension | Lost 5 parts (1p3u1w) 31612 | -4/Extension | Rescued a captive Derelict 31613 | -4/Extension | Rescued a captive Derelict 31660 | -4/Extension | Identified exit to Cetus 31660 | -4/Extension | Discovered exit to Cetus (range 6) 31680 | -4/Extension | Entered Cetus 31680 | -4/Cetus | Accompanied by 2 allies 31695 | -4/Cetus | Spotted Cetus Guard 31695 | -4/Cetus | Spotted Cetus Guard 31696 | -4/Cetus | Destroyed Cetus Guard 31697 | -4/Cetus | Spotted Cetus Guard 31705 | -4/Cetus | Spotted Cetus Guard 31706 | -4/Cetus | Allies destroyed Cetus Guard 31712 | -4/Cetus | Destroyed Cetus Guard 31715 | -4/Cetus | Allies destroyed Cetus Guard 32041 | -4/Cetus | Discovered exit to Research (range 20) 32184 | -4/Cetus | Identified exit to Archives 32184 | -4/Cetus | Discovered exit to Archives (range 20) 32210 | -4/Cetus | Spotted Cetus Guard 32210 | -4/Cetus | Spotted Cetus Guard 32212 | -4/Cetus | Spotted Cetus Guard 32227 | -4/Cetus | Destroyed Cetus Guard 32228 | -4/Cetus | Spotted Cetus Guard 32229 | -4/Cetus | Destroyed Cetus Guard 32248 | -4/Cetus | Destroyed Cetus Guard 32258 | -4/Cetus | Destroyed Cetus Guard 32262 | -4/Cetus | Discovered exit to Research (range 20) 32286 | -4/Cetus | Met Revision 17 32291 | -4/Cetus | Destroyed 7 combat bots 32356 | -4/Cetus | Entered Archives 32378 | -4/Archives | Met Zhirov 32384 | -4/Archives | Reinforcements dispatched to Archives 32385 | -4/Archives | Identified exit to Hub_04(d) 32385 | -4/Archives | Discovered exit to Hub_04(d) (range 16) 32429 | -4/Archives | Reinforcements dispatched to Archives 32431 | -4/Archives | Zhirov warped through subspace 32440 | -4/Archives | Discovered exit to Hub_04(d) (range 16) 32449 | -4/Archives | Zhirov detonated Archives 32471 | -4/Archives | Discovered exit to Research (range 16) 32480 | -4/Archives | Lost 3 parts (1n2u) 32550 | -4/Archives | Entered Hub_04(d) 32756 | -4/Hub_04(d) | Build established: Scavenger-Mutant 32967 | -4/Hub_04(d) | Discovered exit to Research (range 16) 33153 | -4/Hub_04(d) | Discovered exit to Research (range 20) 33177 | -4/Hub_04(d) | Core integrity fell below 50% 33623 | -4/Hub_04(d) | Discovered exit to Research (range 10) 33623 | -4/Hub_04(d) | Network Hub disabled 33647 | -4/Hub_04(d) | Spotted Lightning 33651 | -4/Hub_04(d) | Spotted Lightning 33652 | -4/Hub_04(d) | Spotted Lightning 33675 | -4/Hub_04(d) | Garrison activated, responded to threat 33694 | -4/Hub_04(d) | Core integrity fell below 20% 33694 | -4/Hub_04(d) | Released all parts (7) 33710 | -4/Hub_04(d) | Destroyed by Lightning with EMDS Last Messages --------------- 33694_ Released Imp. Matter Compressor. 33694_ Released Enh. Gauss Cannon. 33694_ Extracted 122 matter. 33694_ Penetrated by Slug. 33694_ Slug penetrates Wall. 33694_ Slug penetrates H-77 Assassin. 33694_ Slug penetrates Wall. 33694_ Penetrated by Slug. 33694_ EMDS Slug penetrates Earth. 33694_ Penetrated by EMDS Slug. 33695_ Slug penetrates Wall. 33706_ EMDS Slug penetrates Wall. 33708_ Acquired Unknown Protection. 33708_ Identified Imp. Power Shielding. 33708_ EMDS Slug penetrates Wall. 33709_ Slug penetrates Wall. 33710_ Penetrated by EMDS Slug. 33710_ EMDS Slug penetrates Wall. [Achievement: 30k Club] [Achievement: Punisher] Map ----- +----------------------------------------------------+ | ??????????????????########???????????????????????? | | ????????????####### #???????????????????????? | | ????????????# ## """" #############???????????? | | ????????????# ## """" ## #???????????? | | ????????????# ## """" ## #???????????? | | ????????????# ## """" ## " #???????????? | | ????????????# ## ## """ !#???????????? | | ????????????# ######+### """"" #???????????? | | ????????????# + """"""" #???????????? | | ?????########+## + """"" #???????????? | | ###### = ! # #####+### """ #???????????? | | """ # # #???????# " #??########## | | " "" # """ """ + #???????# ## | | # # #???????# ! / ## | | ########### ##??????#####+####### """"""""" | | =%! =#!% ##### ! #??????????# #?????# " | | !=%| +=] / #??????????# #?????# " ! | | =!! #! < +?????????# ####### " | | "" %#% ##### ##?????????# #T"# ## "! | | """ ##+###???##+###??????????# # """"""" | | """ ## ?????????########### " | | """ ## """????????# """ ## ####""" | | ## """"???????# ## # # " | | ####!# """"???????# [ ##[ # # " | | ==#### """????????# [!##[! # ## " | | = [#### ? ?????????#####@#####%|[ # ## """"""""" | | "" + ? ??w????????????# hh !! hh# # " " | | " #### ???????????????# ### ##[!#"######"" " | | "" #### ???????????????# # % hh!]= #" " | | + ? "???????????w? hh# !!!!!=! #" " | | #### "?? ???????# h# ![=!| #" " | | ###########"#???????# !=!!] ![ | | ?????? ; * ! * ! | | ???? % % % < | | ??? /uk # %= | | ####+##/####????#####T######## |" | | #??????????##?????? % % # # | | [[ #????????????????? #### """ " | | !%= #????????????????#! #??# # | | =%%= #????????????????# #??# """ ## | | ==![ #????????????????# #??# #? | | *%! #????????????????? #??# #? | | *=! #??????????????????? #??# "T" #? | | = #????????????????????? ???# """ #? | | ###+########??????????????????????##???? ? #? | | ###%######T###????????????????????????????####""?? | | #^ #??????????????????????????????? ?? | | # #???????????????????????????????? ?? | | # """ """ #???????????????????????????????????? | | # ^ ^ #???????????????????????????????????? | +----------------------------------------------------+ Best States ------------- Heat Dissipation 124 Coolant Potential 80 Energy Generation 80 Energy Capacity 990 Matter Stores 302 Matter Capacity 600 Sight Range 20 Robot Scan Range 20 Terrain Scan Range 24 Terrain Scan Density 85 ECM Strength 2 Power Amplification 30 Additional Mass Support 16 Base Temperature (-) 200 Corruption Block 9 Armor Coverage 675 Resistance: KI 65 Resistance: TH 35 Resistance: EX 35 Resistance: EM 35 Resistance: I 35 Resistance: S 35 Resistance: P 35 Core Shielding 30 Power Shielding 66 Utility Shielding 33 Point Defense Rating 80 Weapon Cycling 20 Phase Shifting 10 Evasion (%) 65 Targeting Accuracy 12 Matter Filtering 50 Energy Filtering 30 Kinecelleration 40 Offensive Hacking 62 Defensive Hacking 16 Trap Extractor Capacity 6 Item Schematics ----------------- Adv. Assault Cannon | -8/Materials | Scanalyzed Hcp. Battery | -8/Materials | Scanalyzed Imp. Carbon-fiber Leg | -8/Materials | Scanalyzed Huge Storage Unit | -8/Materials | Scanalyzed System Restoration Module | -8/Materials | Scanalyzed Adv. Weight Redist. System | -8/Materials | Scanalyzed Deuterium Engine | -7/Factory | Scanalyzed Imp. Light Armor Plating | -7/Factory | Scanalyzed Mni. Assault Cannon | -7/Factory | Scanalyzed Adv. ECM Suite | -7/Factory | Scanalyzed KE Penetrator | -7/Factory | Scanalyzed Imp. Deuterium Engine | -7/Factory | Scanalyzed Tri-rail Accelerator | -5/Factory | Scanalyzed Mic. Fission Core | -5/Factory | Scanalyzed Adv. Transmission Jammer | -5/Factory | Hacked Adv. Remote Datajack | -5/Factory | Hacked Adv. Particle Charger | -5/Factory | Hacked Centrium Leg | -4/Factory | Hacked Imp. System Restoration Module | -4/Factory | Scanalyzed Adv. Force Field | -4/Factory | Scanalyzed Myomer Leg | -4/Factory | Scanalyzed Adv. Myomer Leg | -4/Factory | Scanalyzed Hvy. Neutron Cannon | -4/Factory | Scanalyzed Adv. Hacking Suite | -4/Factory | Scanalyzed Imp. Kinecellerator | -4/Factory | Scanalyzed Imp. Core Shielding | -4/Factory | Scanalyzed Enh. Gauss Cannon | -4/Factory | Scanalyzed Imp. Force Field | -4/Factory | Scanalyzed Imp. Field Recycling Unit | -4/Factory | Scanalyzed Quantum Reactor | -4/Extension | Hacked Robot Schematics ------------------ H-55 Commando | -7/Factory | Hacked Fabricated ------------ System Restoration Module | x2 | -7/Factory D-53 Grenadier | x1 | -7/Factory | Preloaded S-27 Virus | x4 | -7/Factory | Preloaded Imp. Carbon-fiber Leg | x2 | -7/Factory Imp. Carbon-fiber Leg | x2 | -7/Factory H-55 Commando | x2 | -7/Factory System Restoration Module | x2 | -5/Factory H-55 Commando | x2 | -5/Factory H-55 Commando | x2 | -5/Factory Lgt. Quantum Reactor | x2 | -4/Factory | Preloaded H-55 Commando | x2 | -4/Factory Centrium Leg | x1 | -4/Factory Centrium Leg | x1 | -4/Factory Adv. Myomer Leg | x1 | -4/Factory Adv. Myomer Leg | x1 | -4/Factory Alien Tech Used ----------------- None Achievements -------------- 30k Club More Power To You Prison Break Production Line Punisher Revising The Future War Machine Challenges ------------ None Game ------ Seed DiametricCoolantBroadsword Manual? 0 Play Time 08:45:24 Cumulative 119.9 hours Start 2023.03.31 @ 17:51:57 End 2023.04.11 @ 17:50:02 Sessions 21 Manual Loads 0 Difficulty Explorer Special Mode None Game No. 112 Rogue 0 Adventurer 102 Explorer 10 Win Type - Total 0 Types 0/0/0/0/0/0/0/0/0 Lore% 43 Gallery% 54 Achievement% 42 Wizard Run 0 Options --------- ASCII 0 Keyboard 0 Movement Mouse Keybinds 0 Fullscreen 1 Font 16/SmallcapsGlow Map View 113x50 Tactical HUD 1 Map Filters NONE Filters NONE Steam 1 RUN: c2adb087-a3e8-4583-9533-873362e89609